[Event "Titled Tuesday Blitz October 31 Early 2023"]
[White "Molina, Roberto Junio Brito"]
[Black "Dixit, Nikhil"]
[WhiteFideId "2109450"]
[BlackFideId "5059534"]
[WhiteElo "2814"]
[BlackElo "2611"]
[Result "1-0"]
[Round "4"]
[TimeControl "180+1"]
[Date "2023.10.31"]
[WhiteClock "0:00:05"]
[BlackClock "0:00:12"]
[Board "43"]

1. d4 {[%clk 0:03:00]}  a6 {[%clk 0:02:57]} 2. e4 {[%clk 0:03:00]}  g6 {[%clk 0:02:54]} 3. h4 {[%clk 0:02:59]}  h5 {[%clk 0:02:51]} 4. Nc3 {[%clk 0:02:57]}  b5 {[%clk 0:02:51]} 5. a4 {[%clk 0:02:56]}  b4 {[%clk 0:02:50]} 6. Nd5 {[%clk 0:02:55]}  a5 {[%clk 0:02:46]} 7. c3 {[%clk 0:02:53]}  Nf6 {[%clk 0:02:32]} 8. Nxf6+ {[%clk 0:02:49]}  exf6 {[%clk 0:02:32]} 9. Bd3 {[%clk 0:02:39]}  Bb7 {[%clk 0:02:30]} 10. Nf3 {[%clk 0:02:36]}  c5 {[%clk 0:02:24]} 11. d5 {[%clk 0:02:34]}  d6 {[%clk 0:02:17]} 12. O-O {[%clk 0:02:19]}  Bg7 {[%clk 0:02:14]} 13. Bb5+ {[%clk 0:02:16]}  Nd7 {[%clk 0:02:14]} 14. Bf4 {[%clk 0:02:15]}  Qe7 {[%clk 0:02:10]} 15. Re1 {[%clk 0:02:13]}  O-O {[%clk 0:02:10]} 16. Qd2 {[%clk 0:02:11]}  Ne5 {[%clk 0:02:05]} 17. Nxe5 {[%clk 0:02:01]}  fxe5 {[%clk 0:02:04]} 18. Bg5 {[%clk 0:02:00]}  f6 {[%clk 0:02:04]} 19. Bh6 {[%clk 0:01:58]}  Bxh6 {[%clk 0:02:02]} 20. Qxh6 {[%clk 0:01:59]}  Qg7 {[%clk 0:02:01]} 21. Qxg7+ {[%clk 0:01:50]}  Kxg7 {[%clk 0:02:02]} 22. cxb4 {[%clk 0:01:50]}  axb4 {[%clk 0:01:59]} 23. a5 {[%clk 0:01:47]}  Ba6 {[%clk 0:01:58]} 24. Bxa6 {[%clk 0:01:42]}  Rxa6 {[%clk 0:01:58]} 25. Ra4 {[%clk 0:01:43]}  Rfa8 {[%clk 0:01:57]} 26. Rea1 {[%clk 0:01:42]}  Kf7 {[%clk 0:01:56]} 27. f3 {[%clk 0:01:42]}  f5 {[%clk 0:01:48]} 28. Kf2 {[%clk 0:01:40]}  f4 {[%clk 0:01:43]} 29. Ke2 {[%clk 0:01:37]}  Ke7 {[%clk 0:01:36]} 30. Kd3 {[%clk 0:01:37]}  Kd7 {[%clk 0:01:36]} 31. Kc4 {[%clk 0:01:37]}  Kc7 {[%clk 0:01:37]} 32. Kb5 {[%clk 0:01:36]}  Kb7 {[%clk 0:01:37]} 33. b3 {[%clk 0:01:36]}  Ka7 {[%clk 0:01:32]} 34. g3 {[%clk 0:01:33]}  Rb8+ {[%clk 0:01:20]} 35. Kc4 {[%clk 0:01:33]}  Rf8 {[%clk 0:01:20]} 36. Rg1 {[%clk 0:01:31]}  fxg3 {[%clk 0:01:19]} 37. Rxg3 {[%clk 0:01:31]}  Rf6 {[%clk 0:01:19]} 38. Kb5 {[%clk 0:01:27]}  Kb7 {[%clk 0:01:19]} 39. Ra2 {[%clk 0:01:23]}  Ra8 {[%clk 0:01:19]} 40. Rag2 {[%clk 0:01:20]}  Rg8 {[%clk 0:01:18]} 41. a6+ {[%clk 0:01:11]}  Ka7 {[%clk 0:01:16]} 42. Kc6 {[%clk 0:01:10]}  Rg7 {[%clk 0:01:14]} 43. Rg1 {[%clk 0:01:02]}  Kb8 {[%clk 0:01:07]} 44. Kb6 {[%clk 0:00:57]}  Ka8 {[%clk 0:01:04]} 45. Rg5 {[%clk 0:00:55]}  Rf8 {[%clk 0:00:14]} 46. Kb5 {[%clk 0:00:20]}  Rxf3 {[%clk 0:00:10]} 47. Rxg6 {[%clk 0:00:17]}  Rxg6 {[%clk 0:00:11]} 48. Rxg6 {[%clk 0:00:18]}  Rf8 {[%clk 0:00:12]} 49. Rxd6 {[%clk 0:00:15]}  Rc8 {[%clk 0:00:12]} 50. Kc4 {[%clk 0:00:15]}  Ka7 {[%clk 0:00:12]} 51. Re6 {[%clk 0:00:15]}  Rg8 {[%clk 0:00:12]} 52. Kxc5 {[%clk 0:00:14]}  Rg3 {[%clk 0:00:12]} 53. Kxb4 {[%clk 0:00:13]}  Rg4 {[%clk 0:00:12]} 54. Rxe5 {[%clk 0:00:13]}  Rxh4 {[%clk 0:00:13]} 55. Ka5 {[%clk 0:00:13]}  Rh3 {[%clk 0:00:13]} 56. Re7+ {[%clk 0:00:13]}  Ka8 {[%clk 0:00:14]} 57. b4 {[%clk 0:00:13]}  Ra3+ {[%clk 0:00:14]} 58. Kb6 {[%clk 0:00:13]}  h4 {[%clk 0:00:15]} 59. Rh7 {[%clk 0:00:10]}  h3 {[%clk 0:00:12]} 60. b5 {[%clk 0:00:10]}  h2 {[%clk 0:00:12]} 61. Rxh2 {[%clk 0:00:08]}  Rg3 {[%clk 0:00:12]} 62. Rh8+ {[%clk 0:00:05]}  Rg8 {[%clk 0:00:12]} 63. Rxg8# {[%clk 0:00:05]} 1-0


[Site "https://www.chess.com"]

[Event "Titled Tuesday Blitz October 31 Early 2023"]
[White "Javakhadze, Zurab"]
[Black "Manukyan, Sargis A."]
[WhiteFideId "13603647"]
[BlackFideId "13303970"]
[WhiteElo "2796"]
[BlackElo "2597"]
[Result "1/2-1/2"]
[Round "4"]
[TimeControl "180+1"]
[Date "2023.10.31"]
[WhiteClock "0:00:06"]
[BlackClock "0:00:12"]
[Board "46"]

1. Nf3 {[%clk 0:03:00]}  d5 {[%clk 0:03:00]} 2. g3 {[%clk 0:02:59]}  Nf6 {[%clk 0:02:59]} 3. Bg2 {[%clk 0:02:59]}  e6 {[%clk 0:03:00]} 4. O-O {[%clk 0:03:00]}  Be7 {[%clk 0:03:00]} 5. c4 {[%clk 0:03:00]}  O-O {[%clk 0:03:01]} 6. b3 {[%clk 0:02:53]}  c5 {[%clk 0:03:01]} 7. e3 {[%clk 0:02:52]}  Nc6 {[%clk 0:03:01]} 8. Bb2 {[%clk 0:02:45]}  d4 {[%clk 0:03:01]} 9. exd4 {[%clk 0:02:45]}  cxd4 {[%clk 0:03:02]} 10. Re1 {[%clk 0:02:46]}  Bc5 {[%clk 0:03:00]} 11. d3 {[%clk 0:02:43]}  a6 {[%clk 0:02:58]} 12. Na3 {[%clk 0:02:39]}  Re8 {[%clk 0:02:58]} 13. Nc2 {[%clk 0:02:30]}  a5 {[%clk 0:02:55]} 14. Ne5 {[%clk 0:02:16]}  Nxe5 {[%clk 0:02:52]} 15. Rxe5 {[%clk 0:02:17]}  Nd7 {[%clk 0:02:52]} 16. Re1 {[%clk 0:02:09]}  e5 {[%clk 0:02:52]} 17. a3 {[%clk 0:02:09]}  Rb8 {[%clk 0:02:45]} 18. b4 {[%clk 0:02:08]}  axb4 {[%clk 0:02:44]} 19. axb4 {[%clk 0:02:09]}  Bf8 {[%clk 0:02:44]} 20. c5 {[%clk 0:01:41]}  Nf6 {[%clk 0:02:36]} 21. Na3 {[%clk 0:01:41]}  Nd5 {[%clk 0:02:34]} 22. Qb3 {[%clk 0:01:39]}  Nc7 {[%clk 0:02:00]} 23. Nc4 {[%clk 0:01:19]}  Be6 {[%clk 0:01:52]} 24. Qc2 {[%clk 0:01:16]}  f6 {[%clk 0:01:50]} 25. Nb6 {[%clk 0:00:47]}  Nd5 {[%clk 0:01:48]} 26. Nxd5 {[%clk 0:00:36]}  Bxd5 {[%clk 0:01:48]} 27. Ra7 {[%clk 0:00:31]}  Bxg2 {[%clk 0:01:45]} 28. Kxg2 {[%clk 0:00:32]}  Qd5+ {[%clk 0:01:39]} 29. Kg1 {[%clk 0:00:33]}  b6 {[%clk 0:01:36]} 30. Ba3 {[%clk 0:00:28]}  bxc5 {[%clk 0:01:36]} 31. bxc5 {[%clk 0:00:29]}  Rec8 {[%clk 0:01:35]} 32. Rc1 {[%clk 0:00:27]}  Ra8 {[%clk 0:01:33]} 33. Rxa8 {[%clk 0:00:25]}  Rxa8 {[%clk 0:01:32]} 34. Bb4 {[%clk 0:00:24]}  Ra2 {[%clk 0:01:18]} 35. Qc4 {[%clk 0:00:20]}  Qxc4 {[%clk 0:01:16]} 36. Rxc4 {[%clk 0:00:21]}  Ra8 {[%clk 0:01:11]} 37. c6 {[%clk 0:00:21]}  Bxb4 {[%clk 0:01:10]} 38. Rxb4 {[%clk 0:00:22]}  Rc8 {[%clk 0:01:10]} 39. Rb6 {[%clk 0:00:20]}  Kf7 {[%clk 0:01:09]} 40. Rb7+ {[%clk 0:00:20]}  Kg6 {[%clk 0:01:05]} 41. Rb6 {[%clk 0:00:18]}  h5 {[%clk 0:01:02]} 42. f4 {[%clk 0:00:18]}  Kf5 {[%clk 0:01:02]} 43. fxe5 {[%clk 0:00:18]}  fxe5 {[%clk 0:01:02]} 44. Kf2 {[%clk 0:00:18]}  g5 {[%clk 0:01:01]} 45. Ke2 {[%clk 0:00:15]}  Rc7 {[%clk 0:00:54]} 46. Kd2 {[%clk 0:00:14]}  Ke6 {[%clk 0:00:50]} 47. Ra6 {[%clk 0:00:05]}  Kd5 {[%clk 0:00:48]} 48. Ra8 {[%clk 0:00:05]}  Rxc6 {[%clk 0:00:44]} 49. Rh8 {[%clk 0:00:05]}  Ra6 {[%clk 0:00:38]} 50. Rxh5 {[%clk 0:00:04]}  Ra2+ {[%clk 0:00:38]} 51. Kd1 {[%clk 0:00:04]}  g4 {[%clk 0:00:39]} 52. Rh4 {[%clk 0:00:04]}  Kc5 {[%clk 0:00:36]} 53. Rxg4 {[%clk 0:00:04]}  Kb4 {[%clk 0:00:34]} 54. Rg5 {[%clk 0:00:04]}  Kc3 {[%clk 0:00:34]} 55. Rxe5 {[%clk 0:00:04]}  Kxd3 {[%clk 0:00:34]} 56. Ke1 {[%clk 0:00:05]}  Rxh2 {[%clk 0:00:32]} 57. g4 {[%clk 0:00:05]}  Rg2 {[%clk 0:00:24]} 58. g5 {[%clk 0:00:05]}  Rg4 {[%clk 0:00:18]} 59. Kf2 {[%clk 0:00:04]}  Kd2 {[%clk 0:00:16]} 60. Kf3 {[%clk 0:00:05]}  Rg1 {[%clk 0:00:17]} 61. Ke4 {[%clk 0:00:03]}  d3 {[%clk 0:00:15]} 62. Rd5 {[%clk 0:00:03]}  Rg3 {[%clk 0:00:12]} 63. Kf4 {[%clk 0:00:03]}  Rg2 {[%clk 0:00:11]} 64. Ke4 {[%clk 0:00:02]}  Re2+ {[%clk 0:00:11]} 65. Kf4 {[%clk 0:00:03]}  Kc2 {[%clk 0:00:09]} 66. g6 {[%clk 0:00:03]}  Rg2 {[%clk 0:00:09]} 67. Kf5 {[%clk 0:00:03]}  d2 {[%clk 0:00:10]} 68. Kf6 {[%clk 0:00:04]}  Rg3 {[%clk 0:00:08]} 69. Rxd2+ {[%clk 0:00:04]}  Kxd2 {[%clk 0:00:09]} 70. g7 {[%clk 0:00:04]}  Rf3+ {[%clk 0:00:10]} 71. Ke7 {[%clk 0:00:04]}  Re3+ {[%clk 0:00:10]} 72. Kf7 {[%clk 0:00:05]}  Rf3+ {[%clk 0:00:10]} 73. Ke7 {[%clk 0:00:05]}  Re3+ {[%clk 0:00:10]} 74. Kf8 {[%clk 0:00:05]}  Ra3 {[%clk 0:00:10]} 75. Kf7 {[%clk 0:00:05]}  Ra8 {[%clk 0:00:11]} 76. g8=Q {[%clk 0:00:05]}  Rxg8 {[%clk 0:00:12]} 77. Kxg8 {[%clk 0:00:06]} 1/2-1/2


[Site "https://www.chess.com"]

[Event "Titled Tuesday Blitz October 31 Early 2023"]
[White "Mindlin, Alon"]
[Black "WynnZawHtun82"]
[WhiteFideId "2800071"]
[WhiteElo "2777"]
[BlackElo "2591"]
[Result "0-1"]
[Round "4"]
[TimeControl "180+1"]
[Date "2023.10.31"]
[WhiteClock "0:01:24"]
[BlackClock "0:00:07"]
[Board "49"]

1. e4 {[%clk 0:02:58]}  e5 {[%clk 0:02:58]} 2. Nf3 {[%clk 0:02:57]}  Nc6 {[%clk 0:02:58]} 3. Nc3 {[%clk 0:02:55]}  Nf6 {[%clk 0:02:58]} 4. Bb5 {[%clk 0:02:56]}  Bb4 {[%clk 0:02:57]} 5. O-O {[%clk 0:02:55]}  O-O {[%clk 0:02:54]} 6. d3 {[%clk 0:02:54]}  Bxc3 {[%clk 0:02:52]} 7. bxc3 {[%clk 0:02:55]}  d6 {[%clk 0:02:51]} 8. Re1 {[%clk 0:02:55]}  Ne7 {[%clk 0:02:50]} 9. d4 {[%clk 0:02:55]}  Ng6 {[%clk 0:02:49]} 10. h3 {[%clk 0:02:56]}  a6 {[%clk 0:02:35]} 11. Bf1 {[%clk 0:02:51]}  Re8 {[%clk 0:02:30]} 12. g3 {[%clk 0:02:45]}  h6 {[%clk 0:02:21]} 13. Bg2 {[%clk 0:02:45]}  Be6 {[%clk 0:02:19]} 14. Kh2 {[%clk 0:02:28]}  Qc8 {[%clk 0:02:17]} 15. d5 {[%clk 0:02:25]}  Bd7 {[%clk 0:02:17]} 16. c4 {[%clk 0:02:24]}  b6 {[%clk 0:02:14]} 17. Nd2 {[%clk 0:02:19]}  a5 {[%clk 0:02:11]} 18. Nf1 {[%clk 0:02:20]}  Qa6 {[%clk 0:01:59]} 19. Ne3 {[%clk 0:02:20]}  Rab8 {[%clk 0:01:32]} 20. a4 {[%clk 0:02:15]}  Rf8 {[%clk 0:01:24]} 21. Qd3 {[%clk 0:02:06]}  Qc8 {[%clk 0:01:20]} 22. Bd2 {[%clk 0:01:55]}  Qe8 {[%clk 0:01:16]} 23. Rf1 {[%clk 0:01:50]}  Bxa4 {[%clk 0:01:13]} 24. Nf5 {[%clk 0:01:50]}  Bd7 {[%clk 0:01:11]} 25. Rae1 {[%clk 0:01:49]}  Ra8 {[%clk 0:00:55]} 26. h4 {[%clk 0:01:47]}  Bxf5 {[%clk 0:00:42]} 27. exf5 {[%clk 0:01:47]}  Ne7 {[%clk 0:00:42]} 28. Kh3 {[%clk 0:01:43]}  Nd7 {[%clk 0:00:31]} 29. g4 {[%clk 0:01:43]}  Nc5 {[%clk 0:00:31]} 30. Qg3 {[%clk 0:01:42]}  Qd7 {[%clk 0:00:28]} 31. f6 {[%clk 0:01:41]}  Ng6 {[%clk 0:00:19]} 32. h5 {[%clk 0:01:41]}  Nf4+ {[%clk 0:00:17]} 33. Bxf4 {[%clk 0:01:40]}  exf4 {[%clk 0:00:17]} 34. Qxf4 {[%clk 0:01:41]}  Rfe8 {[%clk 0:00:17]} 35. fxg7 {[%clk 0:01:41]}  Kxg7 {[%clk 0:00:17]} 36. Kh2 {[%clk 0:01:38]}  f6 {[%clk 0:00:18]} 37. Re3 {[%clk 0:01:29]}  Re5 {[%clk 0:00:16]} 38. Rf3 {[%clk 0:01:28]}  Qe7 {[%clk 0:00:16]} 39. Bh3 {[%clk 0:01:27]}  a4 {[%clk 0:00:15]} 40. Qd2 {[%clk 0:01:25]}  a3 {[%clk 0:00:15]} 41. c3 {[%clk 0:01:25]}  a2 {[%clk 0:00:15]} 42. Qc2 {[%clk 0:01:26]}  Ne4 {[%clk 0:00:08]} 43. Ra1 {[%clk 0:01:25]}  Ra3 {[%clk 0:00:06]} 44. Rxa2 {[%clk 0:01:25]}  Rxa2 {[%clk 0:00:07]} 45. Qxa2 {[%clk 0:01:26]}  Ng5 {[%clk 0:00:08]} 46. Rg3 {[%clk 0:01:23]}  Re2 {[%clk 0:00:07]} 47. Qb1 {[%clk 0:01:23]}  Rxf2+ {[%clk 0:00:07]} 48. Kg1 {[%clk 0:01:23]}  Qe2 {[%clk 0:00:04]} 49. Qg6+ {[%clk 0:01:23]}  Kf8 {[%clk 0:00:05]} 50. Qxh6+ {[%clk 0:01:23]}  Ke7 {[%clk 0:00:04]} 51. Bg2 {[%clk 0:01:21]}  Qe1+ {[%clk 0:00:03]} 52. Kh2 {[%clk 0:01:22]}  Qe5 {[%clk 0:00:03]} 53. Qg7+ {[%clk 0:01:22]}  Nf7 {[%clk 0:00:03]} 54. Qg6 {[%clk 0:01:21]}  Rc2 {[%clk 0:00:02]} 55. Qe4 {[%clk 0:01:21]}  Qxe4 {[%clk 0:00:01]} 56. Kh3 {[%clk 0:01:21]}  Qe5 {[%clk 0:00:02]} 57. h6 {[%clk 0:01:21]}  Rxc3 {[%clk 0:00:02]} 58. Rxc3 {[%clk 0:01:20]}  Qxc3+ {[%clk 0:00:03]} 59. Kh4 {[%clk 0:01:21]}  Nxh6 {[%clk 0:00:04]} 60. Kh5 {[%clk 0:01:22]}  Nf7 {[%clk 0:00:05]} 61. Kg6 {[%clk 0:01:22]}  Qg3 {[%clk 0:00:05]} 62. Be4 {[%clk 0:01:22]}  Qxg4+ {[%clk 0:00:06]} 63. Kh7 {[%clk 0:01:23]}  Qg5 {[%clk 0:00:06]} 64. Bg6 {[%clk 0:01:23]}  Kf8 {[%clk 0:00:07]} 65. Bxf7 {[%clk 0:01:24]}  Qg7# {[%clk 0:00:07]} 0-1


[Site "https://www.chess.com"]

[Event "Titled Tuesday Blitz October 31 Early 2023"]
[White "StiffMaster1"]
[Black "Mekhitarian, Krikor Sevag"]
[BlackFideId "2107660"]
[WhiteElo "2574"]
[BlackElo "2771"]
[Result "1-0"]
[Round "4"]
[TimeControl "180+1"]
[Date "2023.10.31"]
[WhiteClock "0:00:06"]
[BlackClock "0:00:00"]
[Board "52"]

1. e4 {[%clk 0:03:00]}  e6 {[%clk 0:02:59]} 2. d4 {[%clk 0:02:59]}  d5 {[%clk 0:03:00]} 3. Nd2 {[%clk 0:02:58]}  c5 {[%clk 0:02:52]} 4. Ngf3 {[%clk 0:02:58]}  cxd4 {[%clk 0:02:46]} 5. exd5 {[%clk 0:02:58]}  Qxd5 {[%clk 0:02:45]} 6. Bc4 {[%clk 0:02:58]}  Qd7 {[%clk 0:02:43]} 7. O-O {[%clk 0:02:58]}  Nc6 {[%clk 0:02:43]} 8. Nb3 {[%clk 0:02:59]}  a6 {[%clk 0:02:44]} 9. Nbxd4 {[%clk 0:02:59]}  Nxd4 {[%clk 0:02:45]} 10. Nxd4 {[%clk 0:02:59]}  Qc7 {[%clk 0:02:45]} 11. Qe2 {[%clk 0:02:58]}  Bd6 {[%clk 0:02:43]} 12. Kh1 {[%clk 0:02:57]}  Ne7 {[%clk 0:02:38]} 13. Rd1 {[%clk 0:02:46]}  O-O {[%clk 0:02:34]} 14. Bxe6 {[%clk 0:02:35]}  fxe6 {[%clk 0:02:30]} 15. Nxe6 {[%clk 0:02:36]}  Qc6 {[%clk 0:01:54]} 16. Nxf8 {[%clk 0:02:31]}  Kxf8 {[%clk 0:01:55]} 17. Bf4 {[%clk 0:01:25]}  Bxf4 {[%clk 0:01:45]} 18. Rd8+ {[%clk 0:01:26]}  Kf7 {[%clk 0:01:46]} 19. Re1 {[%clk 0:01:26]}  Bg5 {[%clk 0:01:32]} 20. Qh5+ {[%clk 0:01:21]}  Qg6 {[%clk 0:01:32]} 21. Qf3+ {[%clk 0:01:21]}  Qf6 {[%clk 0:01:23]} 22. Qb3+ {[%clk 0:01:08]}  Be6 {[%clk 0:00:33]} 23. Rxe6 {[%clk 0:01:07]}  Rxd8 {[%clk 0:00:34]} 24. Rxf6+ {[%clk 0:00:47]}  Kxf6 {[%clk 0:00:35]} 25. g3 {[%clk 0:00:47]}  Kg6 {[%clk 0:00:21]} 26. Qb6+ {[%clk 0:00:33]}  Nc6 {[%clk 0:00:19]} 27. Qxb7 {[%clk 0:00:33]}  Rd6 {[%clk 0:00:16]} 28. Qxa6 {[%clk 0:00:32]}  Bf6 {[%clk 0:00:16]} 29. Qb5 {[%clk 0:00:27]}  h6 {[%clk 0:00:11]} 30. a4 {[%clk 0:00:27]}  Nd4 {[%clk 0:00:09]} 31. Qe8+ {[%clk 0:00:26]}  Kh7 {[%clk 0:00:09]} 32. b4 {[%clk 0:00:22]}  Re6 {[%clk 0:00:09]} 33. Qd7 {[%clk 0:00:19]}  Re2 {[%clk 0:00:05]} 34. Kg2 {[%clk 0:00:16]}  Rxc2 {[%clk 0:00:04]} 35. a5 {[%clk 0:00:16]}  Rb2 {[%clk 0:00:03]} 36. Qd6 {[%clk 0:00:13]}  Ra2 {[%clk 0:00:02]} 37. a6 {[%clk 0:00:12]}  h5 {[%clk 0:00:01]} 38. b5 {[%clk 0:00:11]}  Nxb5 {[%clk 0:00:01]} 39. Qd3+ {[%clk 0:00:11]}  Kh6 {[%clk 0:00:02]} 40. Qxb5 {[%clk 0:00:11]}  Bd4 {[%clk 0:00:02]} 41. h4 {[%clk 0:00:06]}  Rxf2+ {[%clk 0:00:01]} 42. Kh3 {[%clk 0:00:07]}  Ra2 {[%clk 0:00:02]} 43. Qc4 {[%clk 0:00:06]}  Bf6 {[%clk 0:00:00]} 44. Qxa2 {[%clk 0:00:06]} 1-0


[Site "https://www.chess.com"]

[Event "Titled Tuesday Blitz October 31 Early 2023"]
[White "Halkias, Stelios"]
[Black "LeoLV10"]
[WhiteFideId "4201809"]
[WhiteElo "2734"]
[BlackElo "2567"]
[Result "1-0"]
[Round "4"]
[TimeControl "180+1"]
[Date "2023.10.31"]
[WhiteClock "0:00:41"]
[BlackClock "0:00:12"]
[Board "57"]

1. Nf3 {[%clk 0:03:00]}  Nf6 {[%clk 0:02:59]} 2. c4 {[%clk 0:03:00]}  c5 {[%clk 0:02:59]} 3. Nc3 {[%clk 0:03:00]}  Nc6 {[%clk 0:02:58]} 4. e3 {[%clk 0:02:59]}  e6 {[%clk 0:02:49]} 5. d4 {[%clk 0:02:59]}  cxd4 {[%clk 0:02:50]} 6. exd4 {[%clk 0:02:58]}  d5 {[%clk 0:02:51]} 7. cxd5 {[%clk 0:02:58]}  exd5 {[%clk 0:02:51]} 8. Bb5 {[%clk 0:02:58]}  Bd7 {[%clk 0:02:44]} 9. O-O {[%clk 0:02:57]}  Be7 {[%clk 0:02:41]} 10. Re1 {[%clk 0:02:56]}  O-O {[%clk 0:02:41]} 11. h3 {[%clk 0:02:56]}  a6 {[%clk 0:02:39]} 12. Bxc6 {[%clk 0:02:56]}  bxc6 {[%clk 0:02:38]} 13. Ne5 {[%clk 0:02:56]}  Bd6 {[%clk 0:02:36]} 14. Bg5 {[%clk 0:02:54]}  Ra7 {[%clk 0:02:27]} 15. Qf3 {[%clk 0:02:51]}  Rc7 {[%clk 0:02:04]} 16. Rac1 {[%clk 0:02:45]}  h6 {[%clk 0:01:50]} 17. Bxf6 {[%clk 0:02:41]}  gxf6 {[%clk 0:01:46]} 18. Nxd7 {[%clk 0:02:31]}  Rxd7 {[%clk 0:01:44]} 19. Na4 {[%clk 0:02:31]}  Rc7 {[%clk 0:01:42]} 20. Nc5 {[%clk 0:02:25]}  a5 {[%clk 0:01:40]} 21. Rc3 {[%clk 0:02:23]}  Kh8 {[%clk 0:01:37]} 22. Qh5 {[%clk 0:02:20]}  Kh7 {[%clk 0:01:34]} 23. Ree3 {[%clk 0:02:13]}  Rg8 {[%clk 0:01:32]} 24. Qf5+ {[%clk 0:01:59]}  Rg6 {[%clk 0:01:29]} 25. Rf3 {[%clk 0:01:59]}  Kg7 {[%clk 0:01:26]} 26. h4 {[%clk 0:01:54]}  Re7 {[%clk 0:01:20]} 27. Rce3 {[%clk 0:01:52]}  Rxe3 {[%clk 0:01:18]} 28. Rxe3 {[%clk 0:01:52]}  Qb8 {[%clk 0:01:12]} 29. b3 {[%clk 0:01:47]}  Qb4 {[%clk 0:01:06]} 30. Qc8 {[%clk 0:01:12]}  Qxd4 {[%clk 0:01:04]} 31. Ne6+ {[%clk 0:01:01]}  fxe6 {[%clk 0:00:56]} 32. Qd7+ {[%clk 0:01:01]}  Kh8 {[%clk 0:00:53]} 33. Qxd6 {[%clk 0:01:00]}  Qd1+ {[%clk 0:00:47]} 34. Kh2 {[%clk 0:01:00]}  Qg4 {[%clk 0:00:46]} 35. g3 {[%clk 0:01:00]}  e5 {[%clk 0:00:43]} 36. Qxc6 {[%clk 0:00:53]}  d4 {[%clk 0:00:43]} 37. Rd3 {[%clk 0:00:47]}  Qe2 {[%clk 0:00:38]} 38. Rf3 {[%clk 0:00:42]}  Kg7 {[%clk 0:00:18]} 39. h5 {[%clk 0:00:42]}  e4 {[%clk 0:00:16]} 40. Qd7+ {[%clk 0:00:41]}  Kg8 {[%clk 0:00:14]} 41. hxg6 {[%clk 0:00:41]}  Qxf3 {[%clk 0:00:12]} 42. Qf7+ {[%clk 0:00:41]} 1-0


[Site "https://www.chess.com"]

[Event "Titled Tuesday Blitz October 31 Early 2023"]
[White "Skatchkov, Valery"]
[Black "Gubajdullin, Alexei"]
[WhiteFideId "24195812"]
[BlackFideId "4141202"]
[WhiteElo "2547"]
[BlackElo "2724"]
[Result "1-0"]
[Round "4"]
[TimeControl "180+1"]
[Date "2023.10.31"]
[WhiteClock "0:00:28"]
[BlackClock "0:00:00"]
[Board "61"]

1. d4 {[%clk 0:03:00]}  Nf6 {[%clk 0:02:59]} 2. c4 {[%clk 0:03:00]}  g6 {[%clk 0:02:59]} 3. Nc3 {[%clk 0:03:00]}  Bg7 {[%clk 0:02:59]} 4. e4 {[%clk 0:03:01]}  d6 {[%clk 0:02:59]} 5. h3 {[%clk 0:03:01]}  O-O {[%clk 0:02:58]} 6. Bg5 {[%clk 0:03:02]}  Na6 {[%clk 0:02:59]} 7. Bd3 {[%clk 0:03:02]}  e5 {[%clk 0:02:58]} 8. d5 {[%clk 0:03:02]}  Nc5 {[%clk 0:02:55]} 9. Bc2 {[%clk 0:03:03]}  a5 {[%clk 0:02:55]} 10. Qd2 {[%clk 0:03:03]}  Qd7 {[%clk 0:02:52]} 11. b3 {[%clk 0:02:58]}  Nh5 {[%clk 0:02:51]} 12. Nge2 {[%clk 0:02:55]}  f5 {[%clk 0:02:45]} 13. exf5 {[%clk 0:02:50]}  gxf5 {[%clk 0:02:44]} 14. g4 {[%clk 0:02:35]}  Nf4 {[%clk 0:02:27]} 15. Nxf4 {[%clk 0:02:27]}  exf4 {[%clk 0:02:27]} 16. O-O-O {[%clk 0:02:10]}  Ne4 {[%clk 0:02:21]} 17. Nxe4 {[%clk 0:02:09]}  fxe4 {[%clk 0:02:18]} 18. Bxe4 {[%clk 0:02:09]}  a4 {[%clk 0:02:18]} 19. b4 {[%clk 0:02:08]}  h6 {[%clk 0:02:10]} 20. Bxf4 {[%clk 0:02:02]}  Qf7 {[%clk 0:02:09]} 21. Be3 {[%clk 0:02:02]}  Qf6 {[%clk 0:02:09]} 22. Bd4 {[%clk 0:02:02]}  Qxd4 {[%clk 0:02:04]} 23. Qxd4 {[%clk 0:02:03]}  Bxd4 {[%clk 0:02:02]} 24. Rxd4 {[%clk 0:02:04]}  Rxf2 {[%clk 0:02:02]} 25. Rd2 {[%clk 0:02:04]}  Rf4 {[%clk 0:02:00]} 26. Re1 {[%clk 0:02:05]}  Bd7 {[%clk 0:02:00]} 27. Bd3 {[%clk 0:02:01]}  Re8 {[%clk 0:01:57]} 28. Rxe8+ {[%clk 0:02:00]}  Bxe8 {[%clk 0:01:57]} 29. Re2 {[%clk 0:02:01]}  Kf8 {[%clk 0:01:55]} 30. Kd2 {[%clk 0:01:49]}  Rf3 {[%clk 0:01:42]} 31. Re3 {[%clk 0:01:49]}  Rf2+ {[%clk 0:01:42]} 32. Be2 {[%clk 0:01:49]}  Rh2 {[%clk 0:01:32]} 33. a3 {[%clk 0:01:49]}  Bg6 {[%clk 0:01:28]} 34. Kc3 {[%clk 0:01:48]}  Rh1 {[%clk 0:01:27]} 35. Kd4 {[%clk 0:01:36]}  b6 {[%clk 0:01:17]} 36. c5 {[%clk 0:01:34]}  bxc5+ {[%clk 0:01:09]} 37. bxc5 {[%clk 0:01:34]}  dxc5+ {[%clk 0:00:41]} 38. Kxc5 {[%clk 0:01:35]}  Rc1+ {[%clk 0:00:41]} 39. Kb4 {[%clk 0:01:34]}  Be8 {[%clk 0:00:38]} 40. Bc4 {[%clk 0:01:27]}  Bd7 {[%clk 0:00:29]} 41. Kc5 {[%clk 0:01:11]}  Be8 {[%clk 0:00:25]} 42. Re6 {[%clk 0:00:46]}  Rc3 {[%clk 0:00:24]} 43. Rxh6 {[%clk 0:00:46]}  Rxa3 {[%clk 0:00:24]} 44. Rh8+ {[%clk 0:00:38]}  Ke7 {[%clk 0:00:23]} 45. Rh7+ {[%clk 0:00:39]}  Kd8 {[%clk 0:00:23]} 46. d6 {[%clk 0:00:30]}  cxd6+ {[%clk 0:00:19]} 47. Kxd6 {[%clk 0:00:31]}  Rf3 {[%clk 0:00:07]} 48. Ra7 {[%clk 0:00:30]}  Rf6+ {[%clk 0:00:02]} 49. Be6 {[%clk 0:00:29]}  Bc6 {[%clk 0:00:02]} 50. g5 {[%clk 0:00:27]}  Rg6 {[%clk 0:00:00]} 51. h4 {[%clk 0:00:28]} 1-0


[Site "https://www.chess.com"]